[Event "Ujir Singh Thapa Memorial 2080"]
[Site "Butwal"]
[Date "2024.04.08"]
[Round "8.1"]
[White "Jaiswal, Rupesh"]
[Black "Maharjan, Sajin"]
[Result "1/2-1/2"]
[ECO "B31"]
[WhiteElo "1969"]
[BlackElo "1930"]
[Annotator "RC"]
[PlyCount "123"]
[EventDate "2024.04.03"]
[EventType "swiss"]
[EventCountry "NEP"]
[SourceTitle "playchess.com"]
[Source "ChessBase"]
[SourceQuality "1"]
[TimeControl "3600+30"]

1. e4 {[%emt 0:00:30]} c5 {[%emt 0:00:13]} 2. Nf3 {[%emt 0:00:00]} Nc6 {[%emt 0:00:16]} 3. Bb5 {[%emt 0:00:00]} Nf6 {[%emt 1:01:31]} 4. Nc3 {[%emt 0:02:08]} g6 {[%emt 0:00:00]} 5. O-O {[%emt 0:01:21]} Bg7 {[%emt 0:00:00]} 6. d3 {[%emt 0:01:33]} O-O {[%emt 0:00:00]} 7. h3 {[%emt 0:01:27]} Ne8 {[%emt 0:00:00]} 8. Re1 {[%emt 0:06:02]} Nc7 {[%emt 0:00:00]} 9. Bc4 {[%emt 0:01:13]} Na5 {[%emt 0:00:00]} 10. Bb3 {[%emt 0:02:22]} Nxb3 {[%emt 0:00:00]} 11. axb3 {[%emt 0:00:05]} Ne6 {[%emt 0:00:00]} 12. Be3 {[%emt 0:08:27]} d6 {[%emt 0:00:00]} 13. Qd2 {[%emt 0:04:23]} Re8 {[%emt 0:00:00]} 14. Nd1 {[%emt 0:07:13]} Nd4 {[%emt 0:00:00]} 15. Nh2 {[%emt 0:03:56]} f5 {[%emt 0:00:00]} 16. b4 {[%emt 0:02:51]} e5 {[%emt 0:00:00]} 17. f3 {[%emt 0:02:53]} Bd7 {[%emt 0:00:00]} 18. Ra3 {[%emt 0:01:46]} Qc8 {[%emt 0:00:26]} 19. bxc5 {[%emt 0:00:47]} dxc5 {[%emt 0:00:04]} 20. exf5 {[%emt 0:02:15]} gxf5 {[%emt 0:00:45]} 21. c3 {[%emt 0:00:46]} Nb5 {[%emt 0:00:31]} 22. Ra1 {[%emt 0:00:25]} Qc6 {[%emt 0:00:34]} 23. Bf2 {[%emt 0:05:14]} Nc7 {[%emt 0:01:27]} 24. Ne3 {[%emt 0:02:29]} Rad8 {[%emt 0:00:54]} 25. Rxa7 {[%emt 0:01:53]} Be6 {[%emt 0:01:41]} 26. Qc2 {[%emt 0:00:44]} Na6 {[%emt 0:00:50]} 27. Nc4 {[%emt 0:02:47]} Bxc4 {[%emt 0:00:33]} 28. dxc4 {[%emt 0:00:02]} Qb6 {[%emt 0:00:02]} 29. Rxa6 {[%emt 0:00:32]} bxa6 {[%emt 0:00:22]} 30. b4 {[%emt 0:00:56]} Qe6 {[%emt 0:00:48]} 31. Bxc5 {[%emt 0:00:35]} Qxc4 {[%emt 0:00:20]} 32. Qxf5 {[%emt 0:01:30]} Qxc3 {[%emt 0:00:19]} 33. Re2 {[%emt 0:04:03]} Qd3 {[%emt 0:02:13]} 34. Re4 {[%emt 0:00:01]} Qb1+ {[%emt 0:00:37]} 35. Kf2 {[%emt 0:00:31]} Qa2+ {[%emt 0:00:56]} 36. Kg3 {[%emt 0:01:21]} Qe6 {[%emt 0:00:11]} 37. Qg5 {[%emt 0:01:23]} Qg6 {[%emt 0:00:46]} 38. Qxg6 {[%emt 0:00:49]} hxg6 {[%emt 0:00:01]} 39. Ng4 {[%emt 0:00:08]} Kf7 {[%emt 0:01:34]} 40. Re2 {[%emt 0:00:21]} Rd5 {[%emt 0:01:36]} 41. Ra2 {[%emt 0:00:40]} Re6 {[%emt 0:00:06]} 42. Nf2 {[%emt 0:00:04]} Bf8 {[%emt 0:00:54]} 43. Ne4 {[%emt 0:00:01]} Rc6 {[%emt 0:00:36]} 44. Kg4 {[%emt 0:00:47]} Bxc5 {[%emt 0:00:16]} 45. bxc5 {[%emt 0:00:03]} Rd8 {[%emt 0:00:25]} 46. Kg5 {[%emt 0:00:31]} Ra8 {[%emt 0:00:26]} 47. Ra5 {[%emt 0:01:19]} Kg7 {[%emt 0:00:06]} 48. Nd6 {[%emt 0:00:46]} Rb8 {[%emt 0:00:32]} 49. g3 {[%emt 0:00:54]} Rb3 {[%emt 0:00:18]} 50. Kg4 {[%emt 0:00:05]} Rb4+ {[%emt 0:00:19]} 51. Kg5 {[%emt 0:00:33]} Rb3 {[%emt 0:01:29]} 52. Kg4 {[%emt 0:00:02]} Rb4+ {[%emt 0:00:41]} 53. Kg5 {[%emt 0:00:13]} Rb3 {[%emt 0:00:36]} 54. Kg4 {[%emt 0:00:00]} Rb4+ {[%emt 0:00:06]} 55. Ne4 {[%emt 0:01:27]} Rb5 {[%emt 0:00:39]} 56. Ra3 {[%emt 0:00:00]} a5 {[%emt 0:00:36]} 57. Rd3 {[%emt 0:00:28]} Ra6 {[%emt 0:00:26]} 58. Rc3 {[%emt 0:01:38]} Rc6 {[%emt 0:00:31]} 59. Rd3 {[%emt 0:00:15]} Ra6 {[%emt 0:00:25]} 60. Rc3 {[%emt 0:01:46]} Rc6 {[%emt 0:00:03]} 61. Ra3 {[%emt 0:00:23]} Ra6 {[%emt 0:00:30]} 62. Rd3 {[%emt 0:01:53]} 1/2-1/2

[Event "Ujir Singh Thapa Memorial 2080"]
[Site "Butwal"]
[Date "2024.04.08"]
[Round "8.2"]
[White "Rishabh Nishad"]
[Black "Sinha, Sudhir Kumar"]
[Result "0-1"]
[ECO "B45"]
[WhiteElo "1953"]
[BlackElo "1968"]
[Annotator "RC"]
[PlyCount "134"]
[EventDate "2024.04.03"]
[EventType "swiss"]
[EventCountry "NEP"]
[SourceTitle "playchess.com"]
[Source "ChessBase"]
[SourceQuality "1"]
[TimeControl "3600+30"]

1. e4 {[%emt 0:00:04]} c5 {[%emt 0:01:08]} 2. Nf3 {[%emt 0:00:05]} e6 {[%emt 0:00:54]} 3. d4 {[%emt 0:00:30]} cxd4 {[%emt 0:00:30]} 4. Nxd4 {[%emt 0:00:30]} Nc6 {[%emt 0:00:30]} 5. Nxc6 {[%emt 0:00:30]} bxc6 {[%emt 0:00:30]} 6. Nc3 {[%emt 0:00:00]} Nf6 {[%emt 0:00:00]} 7. e5 {[%emt 0:00:00]} Nd5 {[%emt 0:00:17]} 8. Ne4 {[%emt 0:00:00]} Qc7 {[%emt 0:00:10]} 9. f4 {[%emt 0:00:00]} Qb6 {[%emt 0:00:17]} 10. c4 {[%emt 0:00:00]} Bb4+ {[%emt 0:00:20]} 11. Ke2 {[%emt 0:03:12]} Ba6 {[%emt 0:00:24]} 12. Kf3 {[%emt 0:01:41]} f5 {[%emt 0:00:21]} 13. exf6 {[%emt 0:03:04]} Nxf6 {[%emt 0:01:26]} 14. Be3 {[%emt 0:34:24]} Qa5 {[%emt 0:03:32]} 15. Nxf6+ {[%emt 0:00:59]} gxf6 {[%emt 0:01:41]} 16. a3 {[%emt 0:01:56]} Be7 {[%emt 0:01:37]} 17. c5 {[%emt 0:04:41]} Bxf1 {[%emt 0:01:34]} 18. Rxf1 {[%emt 0:00:04]} Qb5 {[%emt 0:00:29]} 19. b4 {[%emt 0:01:15]} a5 {[%emt 0:02:28]} 20. Qd4 {[%emt 0:00:31]} Rf8 {[%emt 0:05:05]} 21. Rfd1 {[%emt 0:01:33]} Ra7 {[%emt 0:02:22]} 22. f5 {[%emt 0:03:00]} e5 {[%emt 0:01:26]} 23. Qe4 {[%emt 0:03:36]} axb4 {[%emt 0:04:38]} 24. axb4 {[%emt 0:00:32]} Rb7 {[%emt 0:00:18]} 25. Rdb1 {[%emt 0:01:32]} Bd8 {[%emt 0:07:45]} 26. g3 {[%emt 0:02:46]} h5 {[%emt 0:06:40]} 27. Ra3 {[%emt 0:00:16]} Rg8 {[%emt 0:03:40]} 28. Qh4 {[%emt 0:00:30]} Rh8 {[%emt 0:00:31]} 29. Kf2 {[%emt 0:01:05]} Kf7 {[%emt 0:02:50]} 30. Rbb3 {[%emt 0:00:46]} Bc7 {[%emt 0:02:31]} 31. Rd3 {[%emt 0:00:45]} Ke7 {[%emt 0:00:54]} 32. Bg5 {[%emt 0:02:22]} Rf8 {[%emt 0:05:23]} 33. Bh6 {[%emt 0:00:17]} Rf7 {[%emt 0:01:34]} 34. Qxh5 {[%emt 0:05:04]} Bb8 {[%emt 0:00:55]} 35. Bd2 {[%emt 0:00:00]} Qc4 {[%emt 0:01:07]} 36. Qe2 {[%emt 0:01:00]} Ke8 {[%emt 0:04:20]} 37. Rac3 {[%emt 0:00:00]} Qa2 {[%emt 0:03:57]} 38. Rc1 {[%emt 0:00:00]} Ba7 {[%emt 0:00:43]} 39. Kf1 {[%emt 0:01:30]} Qb2 {[%emt 0:02:13]} 40. Rd1 {[%emt 0:00:00]} Qc2 {[%emt 0:01:35]} 41. Be1 {[%emt 0:00:00]} Qa4 {[%emt 0:00:28]} 42. h4 {[%emt 0:00:00]} Re7 {[%emt 0:01:07]} 43. Rd6 {[%emt 0:00:25]} Rf7 {[%emt 0:01:11]} 44. Qh5 {[%emt 0:00:28]} Qb5+ {[%emt 0:00:02]} 45. Kg2 {[%emt 0:00:39]} Kf8 {[%emt 0:00:34]} 46. Qh6+ {[%emt 0:00:33]} Ke7 {[%emt 0:00:05]} 47. Qd2 {[%emt 0:01:55]} Ke8 {[%emt 0:00:30]} 48. Qc2 {[%emt 0:00:00]} Bb8 {[%emt 0:00:33]} 49. R6d3 {[%emt 0:01:00]} Re7 {[%emt 0:01:23]} 50. Qa2 {[%emt 0:00:00]} Kf8 {[%emt 0:00:18]} 51. Qd2 {[%emt 0:00:00]} Qc4 {[%emt 0:00:38]} 52. Qe3 {[%emt 0:00:00]} Ra7 {[%emt 0:00:24]} 53. Qh6+ {[%emt 0:00:18]} Ke8 {[%emt 0:00:22]} 54. Qh8+ {[%emt 0:00:12]} Kf7 {[%emt 0:00:04]} 55. Qxb8 {[%emt 0:01:10]} Ra2+ {[%emt 0:00:20]} 56. Bf2 {[%emt 0:00:47]} Qe4+ {[%emt 0:00:44]} 57. Rf3 {[%emt 0:00:35]} Ra3 {[%emt 0:00:10]} 58. Qd6 {[%emt 0:00:45]} Qxf3+ {[%emt 0:02:02]} 59. Kg1 {[%emt 0:00:12]} Ra2 {[%emt 0:00:00]} 60. Rf1 {[%emt 0:00:38]} e4 {[%emt 0:00:00]} 61. Qd4 {[%emt 0:00:34]} Rc2 {[%emt 0:00:53]} 62. Qe3 {[%emt 0:01:19]} Qxe3 {[%emt 0:00:31]} 63. Bxe3 {[%emt 0:00:30]} Re2 {[%emt 0:00:08]} 64. Bd4 {[%emt 0:00:00]} e3 {[%emt 0:00:08]} 65. Rc1 {[%emt 0:00:24]} Re4 {[%emt 0:00:23]} 66. Bc3 {[%emt 0:01:06]} Rc4 {[%emt 0:00:47]} 67. Re1 {[%emt 0:00:00]} Rc2 {[%emt 0:00:28]} 0-1

[Event "Ujir Singh Thapa Memorial 2080"]
[Site "Butwal"]
[Date "2024.04.08"]
[Round "8.3"]
[White "Jamal Uddin"]
[Black "Maharjan, Suroj"]
[Result "0-1"]
[ECO "A65"]
[WhiteElo "1989"]
[BlackElo "1918"]
[Annotator "RC"]
[PlyCount "108"]
[EventDate "2024.04.03"]
[EventType "swiss"]
[EventCountry "NEP"]
[SourceTitle "playchess.com"]
[Source "ChessBase"]
[SourceQuality "1"]
[TimeControl "3600+30"]

1. c4 {[%emt 0:00:21]} Nf6 {[%emt 0:01:55]} 2. d4 {[%emt 0:00:30]} c5 {[%emt 0:00:30]} 3. d5 {[%emt 0:00:30]} d6 4. Nc3 g6 {[%emt 0:00:57]} 5. e4 {[%emt 0:00:00]} Bg7 {[%emt 0:00:08]} 6. h3 {[%emt 0:00:30]} O-O {[%emt 0:00:58]} 7. Bd3 {[%emt 0:00:39]} e6 {[%emt 0:00:11]} 8. Nge2 {[%emt 0:04:00]} exd5 {[%emt 0:00:57]} 9. cxd5 {[%emt 0:00:11]} Re8 {[%emt 0:03:45]} 10. O-O {[%emt 0:00:24]} c4 {[%emt 0:04:24]} 11. Bc2 {[%emt 0:00:50]} Na6 {[%emt 0:00:13]} 12. Be3 {[%emt 0:00:47]} Bd7 {[%emt 0:00:17]} 13. Nd4 {[%emt 0:00:59]} Nc5 {[%emt 0:01:06]} 14. f3 {[%emt 0:02:14]} a5 {[%emt 0:01:34]} 15. a4 {[%emt 0:00:22]} Rc8 {[%emt 0:02:06]} 16. Qd2 {[%emt 0:00:49]} Na6 {[%emt 0:01:07]} 17. Ncb5 {[%emt 0:01:31]} Bxb5 {[%emt 0:00:07]} 18. Nxb5 {[%emt 0:00:39]} Nb4 {[%emt 0:00:50]} 19. Bb1 {[%emt 0:01:19]} Nh5 {[%emt 0:03:34]} 20. Qf2 {[%emt 0:03:59]} Qe7 {[%emt 0:02:35]} 21. g4 {[%emt 0:00:52]} Nf6 {[%emt 0:01:36]} 22. Bb6 {[%emt 0:00:15]} Ra8 {[%emt 0:02:18]} 23. Nc7 {[%emt 0:00:16]} Nd7 {[%emt 0:00:09]} 24. Nxe8 {[%emt 0:00:53]} Qxe8 {[%emt 0:02:26]} 25. Bd4 {[%emt 0:01:08]} Ne5 {[%emt 0:00:04]} 26. Bc3 {[%emt 0:00:55]} Qe7 {[%emt 0:01:04]} 27. Qe2 {[%emt 0:03:59]} Qh4 {[%emt 0:00:35]} 28. Kg2 {[%emt 0:00:29]} Ned3 {[%emt 0:02:25]} 29. Bxd3 {[%emt 0:00:23]} Nxd3 {[%emt 0:00:13]} 30. f4 {[%emt 0:00:16]} Bxc3 {[%emt 0:00:14]} 31. bxc3 {[%emt 0:00:10]} Qf6 {[%emt 0:00:33]} 32. Qd2 {[%emt 0:28:17]} Re8 {[%emt 0:02:09]} 33. g5 {[%emt 0:00:10]} Qe7 {[%emt 0:01:43]} 34. Rae1 {[%emt 0:02:15]} Nxe1+ {[%emt 0:02:44]} 35. Rxe1 {[%emt 0:00:02]} Qd7 {[%emt 0:02:16]} 36. e5 {[%emt 0:00:37]} dxe5 {[%emt 0:01:04]} 37. fxe5 {[%emt 0:00:15]} Rd8 {[%emt 0:01:30]} 38. d6 {[%emt 0:03:07]} Qxa4 {[%emt 0:00:32]} 39. Rf1 {[%emt 0:04:24]} Qc6+ {[%emt 0:01:39]} 40. Kg3 {[%emt 0:00:20]} b5 {[%emt 0:02:58]} 41. Rf6 {[%emt 0:04:02]} b4 {[%emt 0:02:01]} 42. cxb4 {[%emt 0:00:28]} c3 {[%emt 0:01:15]} 43. Qf2 {[%emt 0:05:03]} c2 {[%emt 0:01:19]} 44. Rxf7 {[%emt 0:00:47]} Qc3+ {[%emt 0:00:33]} 45. Kg2 {[%emt 0:00:54]} Qxe5 {[%emt 0:01:37]} 46. Rc7 {[%emt 0:00:34]} Qxg5+ {[%emt 0:00:50]} 47. Kh2 {[%emt 0:00:20]} Qe5+ {[%emt 0:00:35]} 48. Kg2 {[%emt 0:00:46]} Qd5+ {[%emt 0:00:04]} 49. Kg1 {[%emt 0:00:36]} c1=Q+ {[%emt 0:00:42]} 50. Rxc1 {[%emt 0:00:49]} Qg5+ {[%emt 0:00:08]} 51. Kh2 {[%emt 0:00:43]} Qxc1 {[%emt 0:00:15]} 52. Qa2+ {[%emt 0:00:19]} Kg7 {[%emt 0:00:30]} 53. Qd5 {[%emt 0:00:19]} Qf4+ {[%emt 0:00:28]} 54. Kg2 {[%emt 0:00:08]} Qxd6 {[%emt 0:00:20]} 0-1

[Event "Ujir Singh Thapa Memorial 2080"]
[Site "Butwal"]
[Date "2024.04.08"]
[Round "8.4"]
[White "Silwal, Purushottam"]
[Black "Vipul Subhashi"]
[Result "0-1"]
[ECO "B40"]
[WhiteElo "1932"]
[BlackElo "1971"]
[Annotator "RC"]
[PlyCount "96"]
[EventDate "2024.04.03"]
[EventType "swiss"]
[EventCountry "NEP"]
[SourceTitle "playchess.com"]
[Source "ChessBase"]
[SourceQuality "1"]
[TimeControl "3600+30"]

1. e4 {[%emt 0:00:13]} c5 2. Nf3 e6 {[%emt 0:01:52]} 3. b3 {[%emt 0:00:13]} Nc6 4. Bb2 a6 {[%emt 0:02:40]} 5. c4 {[%emt 0:01:02]} d6 {[%emt 0:02:28]} 6. d4 {[%emt 0:00:06]} Nf6 {[%emt 0:03:32]} 7. d5 {[%emt 0:01:19]} Ne7 {[%emt 0:03:40]} 8. dxe6 {[%emt 0:01:53]} Bxe6 {[%emt 0:00:10]} 9. Bd3 {[%emt 0:01:22]} Ng6 {[%emt 0:00:20]} 10. O-O {[%emt 0:00:13]} Be7 {[%emt 0:02:31]} 11. Nc3 {[%emt 0:00:15]} O-O {[%emt 0:00:17]} 12. Nd5 {[%emt 0:00:39]} Bxd5 {[%emt 0:00:41]} 13. exd5 {[%emt 0:00:12]} Nd7 {[%emt 0:00:26]} 14. Re1 {[%emt 0:05:21]} Bf6 {[%emt 0:01:11]} 15. Qc2 {[%emt 0:00:40]} Bxb2 {[%emt 0:01:24]} 16. Qxb2 {[%emt 0:00:08]} Nde5 {[%emt 0:02:01]} 17. Nxe5 {[%emt 0:00:28]} Nxe5 {[%emt 0:00:04]} 18. Qc2 {[%emt 0:01:48]} Qg5 {[%emt 0:04:49]} 19. Re3 {[%emt 0:54:08]} f5 {[%emt 0:01:54]} 20. Rf1 {[%emt 0:00:00]} f4 {[%emt 0:00:31]} 21. Rh3 {[%emt 0:00:00]} g6 {[%emt 0:00:50]} 22. Be4 {[%emt 0:00:00]} Rae8 {[%emt 0:01:27]} 23. Kh1 {[%emt 0:00:00]} Re7 {[%emt 0:05:36]} 24. Rc3 {[%emt 0:00:00]} Qf6 {[%emt 0:01:36]} 25. f3 {[%emt 0:00:00]} Nf7 {[%emt 0:01:04]} 26. Qd2 {[%emt 0:00:00]} Ng5 {[%emt 0:02:17]} 27. Bd3 {[%emt 0:00:00]} Re3 {[%emt 0:02:22]} 28. Rcc1 {[%emt 0:00:00]} Qd4 {[%emt 0:01:14]} 29. Rcd1 {[%emt 0:00:00]} Rfe8 {[%emt 0:00:22]} 30. Bc2 {[%emt 0:00:00]} Qf6 {[%emt 0:01:22]} 31. Rfe1 {[%emt 0:00:00]} Qb2 {[%emt 0:02:37]} 32. Rxe3 {[%emt 0:00:00]} Rxe3 {[%emt 0:00:35]} 33. h4 {[%emt 0:00:00]} Nf7 {[%emt 0:00:22]} 34. Be4 {[%emt 0:00:00]} Qf6 {[%emt 0:00:49]} 35. Qf2 {[%emt 0:00:00]} Ne5 {[%emt 0:00:08]} 36. Re1 {[%emt 0:00:00]} Rc3 {[%emt 0:02:33]} 37. Qd2 {[%emt 0:00:00]} Nf7 {[%emt 0:03:15]} 38. Kg1 {[%emt 0:00:00]} b5 {[%emt 0:00:16]} 39. cxb5 {[%emt 0:00:00]} axb5 {[%emt 0:00:02]} 40. h5 {[%emt 0:00:00]} b4 {[%emt 0:05:16]} 41. hxg6 {[%emt 0:00:00]} hxg6 {[%emt 0:00:02]} 42. Bb1 {[%emt 0:00:00]} Ne5 {[%emt 0:01:31]} 43. Rc1 {[%emt 0:00:00]} Nxf3+ {[%emt 0:02:20]} 44. gxf3 {[%emt 0:00:00]} Qd4+ {[%emt 0:00:02]} 45. Qxd4 {[%emt 0:00:00]} Rxc1+ {[%emt 0:00:06]} 46. Kg2 {[%emt 0:00:00]} cxd4 {[%emt 0:00:02]} 47. Bxg6 {[%emt 0:00:00]} Kg7 {[%emt 0:00:30]} 48. Be4 {[%emt 0:00:00]} Ra1 {[%emt 0:00:16]} 0-1

[Event "Ujir Singh Thapa Memorial 2080"]
[Site "Butwal"]
[Date "2024.04.08"]
[Round "8.5"]
[White "Thapa, Krishna"]
[Black "Tamang, Sudip"]
[Result "1-0"]
[ECO "A34"]
[WhiteElo "1963"]
[BlackElo "1916"]
[Annotator "RC"]
[PlyCount "125"]
[EventDate "2024.04.03"]
[EventType "swiss"]
[EventCountry "NEP"]
[SourceTitle "playchess.com"]
[Source "ChessBase"]
[SourceQuality "1"]
[TimeControl "3600+30"]

1. c4 {[%emt 0:00:10]} Nf6 {[%emt 0:00:05]} 2. Nc3 {[%emt 0:00:10]} c5 {[%emt 0:00:56]} 3. Nf3 {[%emt 0:00:12]} d5 {[%emt 0:00:51]} 4. cxd5 {[%emt 0:00:30]} Nxd5 5. g3 Nc6 {[%emt 0:00:36]} 6. Bg2 {[%emt 0:02:16]} Nc7 {[%emt 0:00:45]} 7. O-O {[%emt 0:00:33]} e5 {[%emt 0:00:11]} 8. d3 {[%emt 0:01:36]} Bd6 {[%emt 0:00:54]} 9. Be3 {[%emt 0:01:01]} O-O {[%emt 0:01:46]} 10. Ne4 {[%emt 0:00:46]} Ne6 {[%emt 0:03:05]} 11. Rc1 {[%emt 0:03:04]} Ncd4 {[%emt 0:02:20]} 12. Nxd6 {[%emt 0:01:08]} Qxd6 {[%emt 0:00:58]} 13. Nd2 {[%emt 0:00:44]} f6 {[%emt 0:01:58]} 14. Ne4 {[%emt 0:01:41]} Qb6 {[%emt 0:01:40]} 15. Qd2 {[%emt 0:07:07]} Bd7 {[%emt 0:00:46]} 16. Nc3 {[%emt 0:04:34]} Bc6 {[%emt 0:01:05]} 17. f3 {[%emt 0:03:52]} Rfd8 {[%emt 0:02:33]} 18. Bxd4 {[%emt 0:01:34]} cxd4 {[%emt 0:03:16]} 19. Nb1 {[%emt 0:01:54]} Bd5 {[%emt 0:01:24]} 20. b3 {[%emt 0:00:52]} Qd6 {[%emt 0:02:56]} 21. Qb2 {[%emt 0:00:37]} b5 {[%emt 0:00:56]} 22. Nd2 {[%emt 0:00:37]} f5 {[%emt 0:04:33]} 23. Rc2 {[%emt 0:01:03]} Rac8 {[%emt 0:00:46]} 24. Rfc1 {[%emt 0:00:10]} Rxc2 {[%emt 0:00:24]} 25. Rxc2 {[%emt 0:01:49]} Bb7 {[%emt 0:01:33]} 26. Qc1 {[%emt 0:00:36]} a5 {[%emt 0:01:31]} 27. a4 {[%emt 0:01:17]} b4 {[%emt 0:03:42]} 28. Nc4 {[%emt 0:01:18]} Qd5 {[%emt 0:00:48]} 29. Nd2 {[%emt 0:03:41]} Rf8 {[%emt 0:03:48]} 30. Rc4 {[%emt 0:02:03]} Rd8 {[%emt 0:01:52]} 31. Qc2 {[%emt 0:01:41]} g6 {[%emt 0:02:23]} 32. Qc1 {[%emt 0:00:40]} Kg7 {[%emt 0:01:03]} 33. Qf1 {[%emt 0:01:40]} f4 {[%emt 0:01:54]} 34. Qc1 {[%emt 0:01:24]} Ba6 {[%emt 0:02:23]} 35. Rc2 {[%emt 0:01:34]} Bb7 {[%emt 0:02:54]} 36. Bh3 {[%emt 0:00:27]} Ng5 {[%emt 0:01:44]} 37. Bg4 {[%emt 0:05:45]} h5 {[%emt 0:01:11]} 38. Rc5 {[%emt 0:00:21]} Qd6 {[%emt 0:01:08]} 39. Rc7+ {[%emt 0:01:51]} Kh8 {[%emt 0:01:07]} 40. Rxb7 {[%emt 0:00:48]} hxg4 {[%emt 0:00:08]} 41. Qc7 {[%emt 0:04:01]} Qxc7 {[%emt 0:02:24]} 42. Rxc7 {[%emt 0:00:02]} gxf3 {[%emt 0:00:19]} 43. exf3 {[%emt 0:00:52]} Rd5 {[%emt 0:02:36]} 44. Rc6 {[%emt 0:05:40]} Kg7 {[%emt 0:00:30]} 45. Kf2 {[%emt 0:00:17]} Kf7 {[%emt 0:01:05]} 46. g4 {[%emt 0:01:41]} Ne6 {[%emt 0:00:28]} 47. Ne4 {[%emt 0:01:29]} Ke7 {[%emt 0:00:38]} 48. h4 {[%emt 0:00:26]} Rd8 {[%emt 0:01:57]} 49. Kg2 {[%emt 0:01:34]} Ra8 {[%emt 0:01:51]} 50. Kh3 {[%emt 0:00:46]} Kd7 {[%emt 0:00:21]} 51. Rd6+ {[%emt 0:00:49]} Ke7 {[%emt 0:00:19]} 52. Rd5 {[%emt 0:00:23]} Rc8 {[%emt 0:00:55]} 53. Rxe5 {[%emt 0:00:56]} Kd7 {[%emt 0:00:28]} 54. Rd5+ {[%emt 0:00:34]} Ke7 {[%emt 0:00:20]} 55. Rxa5 {[%emt 0:00:17]} Rc3 {[%emt 0:00:28]} 56. Re5 {[%emt 0:00:45]} Rxd3 {[%emt 0:01:25]} 57. Rxe6+ {[%emt 0:00:08]} Kf7 {[%emt 0:00:46]} 58. Rf6+ {[%emt 0:00:29]} Kg7 {[%emt 0:00:05]} 59. Rxf4 {[%emt 0:00:08]} Rxb3 {[%emt 0:00:05]} 60. Kg3 {[%emt 0:00:57]} Rd3 {[%emt 0:01:09]} 61. Nc5 {[%emt 0:00:17]} Rc3 {[%emt 0:00:03]} 62. Ne6+ {[%emt 0:00:06]} Kh7 {[%emt 0:00:35]} 63. Rxd4 {[%emt 0:00:35]} 1-0

[Event "Ujir Singh Thapa Memorial 2080"]
[Site "Butwal"]
[Date "2024.04.08"]
[Round "8.6"]
[White "Raghav, Srivathsav V"]
[Black "Kumar, Rohan"]
[Result "1-0"]
[ECO "D70"]
[WhiteElo "1983"]
[BlackElo "1813"]
[Annotator "RC"]
[PlyCount "70"]
[EventDate "2024.04.03"]
[EventType "swiss"]
[EventCountry "NEP"]
[SourceTitle "playchess.com"]
[Source "ChessBase"]
[SourceQuality "1"]
[TimeControl "3600+30"]

1. Nf3 {[%emt 0:00:30]} d5 {[%emt 0:00:30]} 2. e3 {[%emt 0:00:30]} g6 {[%emt 0:01:45]} 3. d4 {[%emt 0:02:30]} Bg7 {[%emt 0:00:12]} 4. c4 {[%emt 0:00:05]} Nf6 {[%emt 0:00:40]} 5. Nbd2 {[%emt 0:01:08]} c6 {[%emt 0:00:25]} 6. b3 {[%emt 0:00:04]} b6 {[%emt 0:01:28]} 7. Bb2 {[%emt 0:00:05]} Bb7 {[%emt 0:00:23]} 8. Ne5 {[%emt 0:02:27]} Nbd7 {[%emt 0:00:24]} 9. cxd5 {[%emt 0:00:44]} cxd5 {[%emt 0:00:24]} 10. Bb5 {[%emt 0:00:33]} a6 {[%emt 0:03:55]} 11. Bc6 {[%emt 0:00:23]} Qc8 {[%emt 0:05:26]} 12. Rc1 {[%emt 0:02:07]} Bxc6 {[%emt 0:00:12]} 13. Nxc6 {[%emt 0:00:02]} Qb7 {[%emt 0:00:15]} 14. Ba3 {[%emt 0:02:49]} Bf8 {[%emt 0:01:20]} 15. O-O {[%emt 0:12:55]} e6 {[%emt 0:00:30]} 16. Bb2 {[%emt 0:03:18]} Rc8 {[%emt 0:01:26]} 17. Ne5 {[%emt 0:03:32]} Bd6 {[%emt 0:03:21]} 18. Nxd7 {[%emt 0:03:51]} Qxd7 {[%emt 0:02:25]} 19. Qe2 {[%emt 0:01:40]} b5 {[%emt 0:02:18]} 20. Rxc8+ {[%emt 0:04:04]} Qxc8 {[%emt 0:00:19]} 21. Rc1 {[%emt 0:00:02]} Qb7 {[%emt 0:00:25]} 22. e4 {[%emt 0:00:43]} dxe4 {[%emt 0:01:19]} 23. d5 {[%emt 0:00:20]} e5 {[%emt 0:01:53]} 24. Rc6 {[%emt 0:00:51]} Kd7 {[%emt 0:03:14]} 25. f4 {[%emt 0:01:52]} exf3 {[%emt 0:06:32]} 26. Rxd6+ {[%emt 0:02:08]} Kxd6 {[%emt 0:01:47]} 27. Bxe5+ {[%emt 0:07:27]} Ke7 {[%emt 0:02:42]} 28. Nxf3 {[%emt 0:00:10]} Re8 {[%emt 0:02:47]} 29. Bxf6+ {[%emt 0:00:37]} Kd7 {[%emt 0:00:39]} 30. Ne5+ {[%emt 0:01:58]} Kd6 {[%emt 0:01:51]} 31. Nc4+ {[%emt 0:00:22]} bxc4 {[%emt 0:03:13]} 32. Qxe8 {[%emt 0:00:03]} cxb3 {[%emt 0:01:09]} 33. Qe5+ {[%emt 0:01:01]} Kc5 {[%emt 0:00:49]} 34. d6+ {[%emt 0:00:07]} Kc4 {[%emt 0:00:37]} 35. Qc3+ {[%emt 0:00:18]} Kd5 {[%emt 0:00:26]} 1-0

[Event "Ujir Singh Thapa Memorial 2080"]
[Site "Butwal"]
[Date "2024.04.08"]
[Round "8.7"]
[White "Vinayak Singh Yadav"]
[Black "Phuyal, Aashish"]
[Result "1/2-1/2"]
[ECO "C55"]
[WhiteElo "1748"]
[BlackElo "1912"]
[Annotator "RC"]
[PlyCount "32"]
[EventDate "2024.04.03"]
[EventType "swiss"]
[EventCountry "NEP"]
[SourceTitle "playchess.com"]
[Source "ChessBase"]
[SourceQuality "1"]
[TimeControl "3600+30"]

1. e4 {[%emt 0:00:07]} e5 {[%emt 0:00:14]} 2. Nf3 {[%emt 0:00:15]} Nc6 {[%emt 0:00:07]} 3. Bc4 {[%emt 0:00:34]} Be7 {[%emt 1:01:39]} 4. Nc3 {[%emt 0:04:04]} Nf6 {[%emt 0:00:00]} 5. d3 {[%emt 0:02:57]} d6 {[%emt 0:00:00]} 6. h3 {[%emt 0:00:18]} O-O {[%emt 0:00:00]} 7. O-O {[%emt 0:00:28]} Na5 {[%emt 0:00:00]} 8. Bb3 {[%emt 0:00:31]} Nxb3 {[%emt 0:00:00]} 9. axb3 {[%emt 0:00:21]} c5 {[%emt 0:00:00]} 10. Bg5 {[%emt 0:01:46]} Be6 {[%emt 0:00:00]} 11. Nh2 {[%emt 0:09:57]} h6 {[%emt 0:00:00]} 12. Bxf6 {[%emt 0:00:35]} Bxf6 {[%emt 0:00:00]} 13. Ng4 {[%emt 0:01:54]} Bg5 {[%emt 0:00:00]} 14. Ne3 {[%emt 0:01:01]} Bxe3 {[%emt 0:00:00]} 15. fxe3 {[%emt 0:00:08]} Qg5 {[%emt 0:00:00]} 16. Qf3 {[%emt 0:01:19]} a6 {[%emt 0:00:00]} 1/2-1/2